[Event "XXVII RUS-chT Women 2020"]
[Site "Sochi"]
[Date "2020.11.19"]
[Round "1.12"]
[White "Styazhkina, Anna"]
[Black "Mukhina, Jana"]
[Result "1-0"]
[ECO "C50"]
[WhiteElo "2319"]
[BlackElo "2012"]
[Annotator "NA"]
[PlyCount "93"]
[EventDate "2020.11.19"]
[EventType "team-tourn"]
[EventCountry "RUS"]
[SourceTitle "playchess.com"]
[Source "ChessBase"]
[SourceQuality "1"]
[TimeControl "40/5400+30:1800+30"]

1. e4 {[%emt 0:00:00]} e5 {[%emt 0:00:00]} 2. Nf3 {[%emt 0:00:00]} Nc6 {[%emt 0:00:00]} 3. Bc4 {[%emt 0:00:26]} Bc5 {[%emt 0:00:00]} 4. d3 {[%emt 0:00:29]} Nf6 {[%emt 0:00:00]} 5. O-O {[%emt 0:00:18]} O-O {[%emt 0:00:47]} 6. a4 {[%emt 0:00:38]} a6 {[%emt 0:02:14]} 7. Nbd2 {[%emt 0:00:27]} d6 {[%emt 0:02:42]} 8. c3 {[%emt 0:00:58]} Be6 {[%emt 0:01:47]} 9. Re1 {[%emt 0:10:34]} Ba7 {[%emt 0:07:10]} 10. h3 {[%emt 0:07:03]} Bxc4 {[%emt 0:11:19]} 11. Nxc4 {[%emt 0:01:14]} b5 {[%emt 0:00:31]} 12. Ne3 $14 {[%emt 0:01:54]} d5 {[%emt 0:09:18]} 13. Qc2 {[%emt 0:03:31]} d4 {[%emt 0:37:24]} 14. Nf5 {[%emt 0:04:36]} g6 {[%emt 0:01:36]} 15. cxd4 {[%emt 0:06:23]} Nxd4 {[%emt 0:02:26]} 16. N5xd4 {[%emt 0:03:29]} Bxd4 {[%emt 0:02:11]} 17. Bg5 {[%emt 0:00:53]} h6 {[%emt 0:03:25]} 18. Bxh6 {[%emt 0:02:19]} Re8 {[%emt 0:02:58]} 19. Nxd4 {[%emt 0:01:16]} Qxd4 {[%emt 0:00:43]} 20. axb5 {[%emt 0:00:40]} Qb6 {[%emt 0:01:53]} 21. bxa6 {[%emt 0:03:28]} Rxa6 {[%emt 0:00:17]} 22. Rxa6 {[%emt 0:08:04]} Qxa6 {[%emt 0:00:02]} 23. Rc1 {[%emt 0:02:07]} Re6 {[%emt 0:04:01]} 24. Qc5 {[%emt 0:06:26]} Qd6 {[%emt 0:05:32]} 25. Qxc7 {[%emt 0:08:20]} Qxd3 {[%emt 0:00:21]} 26. Qb8+ {[%emt 0:01:51]} Re8 {[%emt 0:01:51]} 27. Rc8 {[%emt 0:01:17]} Rxc8 {[%emt 0:00:51]} 28. Qxc8+ {[%emt 0:00:08]} Kh7 {[%emt 0:00:02]} 29. Qf8 {[%emt 0:01:20]} Nh5 {[%emt 0:00:50]} 30. Bg5 {[%emt 0:01:53]} Qb1+ {[%emt 0:02:10]} 31. Kh2 {[%emt 0:00:09]} Qxe4 {[%emt 0:00:11]} 32. Qxf7+ {[%emt 0:02:14]} Ng7 {[%emt 0:00:38]} 33. f3 {[%emt 0:04:27]} Qd4 {[%emt 0:00:25]} 34. Qe7 {[%emt 0:03:37]} Kh8 {[%emt 0:00:53]} 35. f4 {[%emt 0:00:45]} Kh7 {[%emt 0:00:30]} 36. Qxe5 {[%emt 0:00:39]} Qxe5 {[%emt 0:00:07]} 37. fxe5 {[%emt 0:00:05]} Ne6 {[%emt 0:00:04]} 38. Bf6 {[%emt 0:00:15]} Kg8 {[%emt 0:00:12]} 39. g4 {[%emt 0:01:01]} Kf7 {[%emt 0:00:05]} 40. Kg3 {[%emt 0:00:00]} Ke8 {[%emt 0:00:00]} 41. h4 {[%emt 0:01:37]} Kf7 {[%emt 0:05:00]} 42. b4 {[%emt 0:00:39]} Nd4 {[%emt 0:00:10]} 43. Kf4 {[%emt 0:00:27]} Ne6+ {[%emt 0:00:16]} 44. Ke4 {[%emt 0:00:18]} Ke8 {[%emt 0:00:06]} 45. Kd5 {[%emt 0:00:34]} Kd7 {[%emt 0:00:04]} 46. b5 {[%emt 0:00:42]} Nc7+ {[%emt 0:00:21]} 47. Ke4 1-0

[Event "XXVII RUS-chT Women 2020"]
[Site "Sochi"]
[Date "2020.11.19"]
[Round "1.13"]
[White "Vasilevich, Tatjana"]
[Black "Kochukova, Anna"]
[Result "1-0"]
[ECO "B44"]
[WhiteElo "2353"]
[BlackElo "2111"]
[Annotator "NA"]
[PlyCount "85"]
[EventDate "2020.11.19"]
[EventType "team-tourn"]
[EventCountry "RUS"]
[SourceTitle "playchess.com"]
[Source "ChessBase"]
[SourceQuality "1"]
[TimeControl "40/5400+30:1800+30"]

1. e4 {[%emt 0:00:00]} c5 {[%emt 0:00:14]} 2. Nf3 {[%emt 0:00:00]} e6 {[%emt 0:00:57]} 3. d4 {[%emt 0:00:00]} cxd4 {[%emt 0:00:10]} 4. Nxd4 {[%emt 0:00:03]} Nc6 {[%emt 0:00:13]} 5. Nb5 {[%emt 0:00:16]} d6 {[%emt 0:00:31]} 6. Bf4 {[%emt 0:00:12]} e5 {[%emt 0:00:34]} 7. Be3 {[%emt 0:00:09]} Nf6 {[%emt 0:00:46]} 8. Bg5 {[%emt 0:04:49]} Qa5+ {[%emt 0:13:18]} 9. Bd2 {[%emt 0:00:37]} Qd8 {[%emt 0:00:11]} 10. Bg5 {[%emt 0:11:24]} Qa5+ {[%emt 0:00:22]} 11. Qd2 {[%emt 0:01:21]} Nxe4 {[%emt 0:19:04]} 12. Qxa5 {[%emt 0:00:10]} Nxa5 {[%emt 0:00:01]} 13. Be3 $1 {[%emt 0:00:11]} Kd7 {[%emt 0:02:21]} 14. Bxa7 {[%emt 0:02:14]} (14. f3 $14 Nf6 15. Bxa7) 14... Be7 {[%emt 0:09:02]} 15. f3 {[%emt 0:08:43]} Nf6 {[%emt 0:02:21]} 16. N1c3 {[%emt 0:00:19]} Nc6 {[%emt 0:03:31]} 17. Bf2 {[%emt 0:09:29]} Nb4 {[%emt 0:08:39]} 18. Rc1 {[%emt 0:01:52]} Nfd5 {[%emt 0:06:55]} 19. Nxd5 $16 {[%emt 0:05:48]} Nxd5 {[%emt 0:00:04]} 20. Bc4 {[%emt 0:00:43]} Nf4 {[%emt 0:05:28]} 21. g3 {[%emt 0:05:55]} Ne6 {[%emt 0:01:17]} 22. O-O {[%emt 0:05:39]} Bd8 {[%emt 0:06:33]} 23. Rcd1 {[%emt 0:00:57]} Bc7 {[%emt 0:00:22]} 24. Be3 {[%emt 0:09:00]} Bb8 {[%emt 0:02:54]} 25. Nc3 {[%emt 0:08:07]} Rd8 {[%emt 0:06:04]} 26. f4 {[%emt 0:02:38]} Ke8 {[%emt 0:02:08]} 27. Nb5 {[%emt 0:06:29]} Ra6 {[%emt 0:03:25]} 28. a3 {[%emt 0:03:08]} Bd7 {[%emt 0:03:38]} 29. Nc3 {[%emt 0:04:11]} Ra8 {[%emt 0:01:21]} 30. Rd2 {[%emt 0:06:58]} f6 {[%emt 0:01:36]} 31. Rfd1 {[%emt 0:00:27]} Rc8 {[%emt 0:00:43]} 32. Bb3 {[%emt 0:01:12]} Nd8 {[%emt 0:00:34]} 33. fxe5 {[%emt 0:01:28]} fxe5 {[%emt 0:00:10]} 34. Ne4 {[%emt 0:00:30]} Bg4 {[%emt 0:00:46]} 35. Rf1 {[%emt 0:00:44]} Ra6 {[%emt 0:00:22]} 36. Rdf2 {[%emt 0:00:29]} Bh3 {[%emt 0:00:44]} 37. Rf8+ {[%emt 0:00:22]} Kd7 {[%emt 0:00:12]} 38. Rd1 {[%emt 0:00:44]} Bg4 {[%emt 0:00:36]} 39. Rd2 {[%emt 0:00:17]} b6 {[%emt 0:00:50]} 40. Rg8 {[%emt 0:00:00]} Be6 {[%emt 0:00:00]} 41. Rxg7+ {[%emt 0:01:48]} Kc6 {[%emt 0:02:19]} 42. Rxh7 {[%emt 0:01:48]} b5 {[%emt 0:06:36]} 43. Rh6 {[%emt 0:03:34]} 1-0

[Event "XXVII RUS-chT Women 2020"]
[Site "Sochi"]
[Date "2020.11.19"]
[Round "1.14"]
[White "Zhurova, Anna"]
[Black "Tomilova, Elena"]
[Result "0-1"]
[ECO "C17"]
[WhiteElo "2078"]
[BlackElo "2358"]
[Annotator "ChessBase"]
[PlyCount "112"]
[EventDate "2020.11.19"]
[EventType "team-tourn"]
[EventCountry "RUS"]
[SourceTitle "playchess.com"]
[Source "ChessBase"]
[SourceQuality "1"]
[TimeControl "40/5400+30:1800+30"]

1. e4 {[%emt 0:00:00]} e6 {[%emt 0:00:00]} 2. d4 {[%emt 0:00:00]} d5 {[%emt 0:00:00]} 3. Nc3 {[%emt 0:00:00]} Bb4 {[%emt 0:00:00]} 4. e5 {[%emt 0:00:01]} c5 {[%emt 0:00:00]} 5. a3 {[%emt 0:00:13]} Ba5 {[%emt 0:00:00]} 6. b4 {[%emt 0:11:57]} cxd4 {[%emt 0:00:20]} 7. Nb5 {[%emt 0:03:00]} Bc7 {[%emt 0:00:12]} 8. f4 {[%emt 0:01:47]} Bd7 {[%emt 0:00:55]} 9. Qg4 {[%emt 0:08:50]} Kf8 {[%emt 0:03:03]} 10. Nxd4 {[%emt 0:02:51]} Nc6 {[%emt 0:03:08]} 11. Nb3 {[%emt 0:02:28]} Nge7 {[%emt 0:14:41]} 12. Nf3 {[%emt 0:10:46]} Nf5 {[%emt 0:08:08]} 13. Bd3 {[%emt 0:09:17]} Bb6 {[%emt 0:06:16]} 14. c3 {[%emt 0:16:20]} Rc8 {[%emt 0:08:12]} 15. Qh3 {[%emt 0:06:13]} Nce7 {[%emt 0:06:46]} 16. Bd2 {[%emt 0:03:11]} Ba4 {[%emt 0:13:46]} 17. Nc5 {[%emt 0:04:28]} Bxc5 {[%emt 0:08:49]} 18. bxc5 {[%emt 0:00:05]} d4 {[%emt 0:00:17]} 19. c4 {[%emt 0:05:45]} Ne3 {[%emt 0:02:07]} 20. Rc1 {[%emt 0:00:58]} Bc6 {[%emt 0:02:37]} 21. Ke2 {[%emt 0:02:15]} h5 {[%emt 0:05:15]} 22. Bxe3 {[%emt 0:04:55]} dxe3 {[%emt 0:00:05]} 23. Rhd1 {[%emt 0:00:17]} Qa5 {[%emt 0:01:56]} 24. Ng5 {[%emt 0:02:08]} Ba4 {[%emt 0:08:54]} 25. Bc2 {[%emt 0:02:12]} Nf5 {[%emt 0:01:32]} 26. Bxf5 {[%emt 0:01:01]} Bxd1+ {[%emt 0:00:52]} 27. Rxd1 {[%emt 0:00:01]} Rd8 {[%emt 0:01:46]} 28. Rxd8+ {[%emt 0:01:04]} Qxd8 {[%emt 0:00:02]} 29. Bd3 {[%emt 0:00:06]} Qa5 {[%emt 0:01:08]} 30. Qxe3 {[%emt 0:00:17]} Qxa3 {[%emt 0:00:02]} 31. Qd4 {[%emt 0:00:27]} Qa2+ {[%emt 0:01:26]} 32. Kf3 {[%emt 0:00:49]} Ke8 {[%emt 0:00:40]} 33. f5 {[%emt 0:01:13]} Rh6 {[%emt 0:00:27]} 34. Ne4 {[%emt 0:00:44]} Qb3 {[%emt 0:00:58]} 35. Nd6+ {[%emt 0:00:46]} Kf8 {[%emt 0:00:18]} 36. Qe3 {[%emt 0:01:00]} a5 {[%emt 0:00:36]} 37. f6 {[%emt 0:00:06]} a4 {[%emt 0:00:46]} 38. Kf2 {[%emt 0:00:49]} Qb2+ {[%emt 0:00:41]} 39. Be2 {[%emt 0:00:33]} Rg6 {[%emt 0:00:41]} 40. fxg7+ {[%emt 0:00:00]} Rxg7 {[%emt 0:00:00]} 41. Nb5 {[%emt 0:00:53]} Kg8 {[%emt 0:08:06]} 42. Kf3 {[%emt 0:03:18]} Qc2 {[%emt 0:07:59]} 43. g3 {[%emt 0:07:12]} Qb2 {[%emt 0:04:12]} 44. Qc3 {[%emt 0:08:52]} Qxc3+ {[%emt 0:01:30]} 45. Nxc3 {[%emt 0:00:02]} a3 {[%emt 0:00:02]} 46. Kf4 {[%emt 0:00:54]} h4 {[%emt 0:00:59]} 47. g4 {[%emt 0:03:50]} f6 {[%emt 0:02:59]} 48. exf6 {[%emt 0:01:42]} Rc7 {[%emt 0:00:02]} 49. Bd1 {[%emt 0:06:19]} Rd7 {[%emt 0:00:50]} 50. Bf3 {[%emt 0:00:52]} Rd4+ {[%emt 0:01:20]} 51. Ke3 {[%emt 0:01:04]} Rxc4 {[%emt 0:00:14]} 52. Kd3 {[%emt 0:00:53]} Rxc5 {[%emt 0:00:18]} 53. Bxb7 {[%emt 0:00:35]} Kf7 {[%emt 0:00:56]} 54. Bf3 {[%emt 0:01:00]} Ra5 {[%emt 0:00:32]} 55. Na2 {[%emt 0:00:26]} Kxf6 {[%emt 0:02:48]} 56. Kc3 {[%emt 0:00:32]} Rb5 {[%emt 0:01:14]} 0-1

[Event "XXVII RUS-chT Women 2020"]
[Site "Sochi"]
[Date "2020.11.19"]
[Round "1.15"]
[White "Potapova, Margarita"]
[Black "Shestakova, Ekaterina"]
[Result "1-0"]
[ECO "B31"]
[WhiteElo "2266"]
[BlackElo "1966"]
[Annotator "NA"]
[PlyCount "107"]
[EventDate "2020.11.19"]
[EventType "team-tourn"]
[EventCountry "RUS"]
[SourceTitle "playchess.com"]
[Source "ChessBase"]
[SourceQuality "1"]
[TimeControl "40/5400+30:1800+30"]

1. e4 {[%emt 0:00:00]} c5 {[%emt 0:00:00]} 2. Nf3 {[%emt 0:00:00]} Nc6 {[%emt 0:00:00]} 3. Bb5 {[%emt 0:00:42]} g6 {[%emt 0:00:09]} 4. Bxc6 {[%emt 0:00:39]} dxc6 {[%emt 0:02:23]} 5. d3 {[%emt 0:00:21]} Bg7 {[%emt 0:00:18]} 6. h3 {[%emt 0:00:32]} e5 {[%emt 0:00:38]} 7. Nc3 {[%emt 0:02:50]} Ne7 {[%emt 0:03:07]} 8. Be3 {[%emt 0:00:06]} b6 {[%emt 0:00:11]} 9. Qd2 {[%emt 0:04:02]} h6 {[%emt 0:08:15]} 10. a3 {[%emt 0:02:23]} Be6 {[%emt 0:01:28]} 11. b4 {[%emt 0:02:54]} f5 $15 {[%emt 0:14:07]} 12. Qe2 {[%emt 0:13:18]} cxb4 {[%emt 0:04:06]} 13. axb4 {[%emt 0:00:05]} O-O {[%emt 0:05:00]} 14. O-O {[%emt 0:01:20]} Qd7 {[%emt 0:12:36]} 15. exf5 {[%emt 0:04:58]} Nxf5 {[%emt 0:02:02]} 16. Ne4 {[%emt 0:02:32]} Nd4 {[%emt 0:10:13]} 17. Nxd4 {[%emt 0:07:07]} exd4 {[%emt 0:00:10]} 18. Bd2 {[%emt 0:00:17]} Bd5 {[%emt 0:09:25]} 19. f3 {[%emt 0:01:27]} Rac8 {[%emt 0:02:54]} 20. Qe1 {[%emt 0:02:37]} Kh7 {[%emt 0:05:23]} 21. Qh4 {[%emt 0:01:35]} Bxe4 {[%emt 0:05:50]} 22. fxe4 {[%emt 0:01:56]} c5 {[%emt 0:01:09]} 23. Rxf8 {[%emt 0:02:38]} Rxf8 {[%emt 0:00:34]} 24. bxc5 {[%emt 0:00:36]} bxc5 {[%emt 0:00:10]} 25. Qg4 {[%emt 0:08:14]} Qf7 {[%emt 0:01:18]} 26. Qe2 {[%emt 0:01:36]} Be5 {[%emt 0:00:24]} 27. Qf3 {[%emt 0:05:38]} Kg7 {[%emt 0:02:39]} 28. Qxf7+ {[%emt 0:02:54]} Rxf7 {[%emt 0:00:04]} 29. Ra5 {[%emt 0:00:35]} Bd6 {[%emt 0:01:14]} 30. Ra6 {[%emt 0:00:29]} Bg3 {[%emt 0:00:48]} 31. Ra1 {[%emt 0:05:28]} Rb7 {[%emt 0:03:02]} 32. Kf1 {[%emt 0:02:36]} Rf7+ {[%emt 0:00:25]} 33. Kg1 {[%emt 0:00:14]} Rb7 {[%emt 0:00:04]} 34. Bc1 {[%emt 0:01:51]} g5 {[%emt 0:04:46]} 35. Ba3 {[%emt 0:00:23]} Rb5 {[%emt 0:00:21]} 36. Kf1 {[%emt 0:01:07]} a5 {[%emt 0:01:34]} 37. Ke2 {[%emt 0:00:15]} Kf7 {[%emt 0:00:39]} 38. Rf1+ {[%emt 0:00:29]} Ke6 {[%emt 0:00:41]} 39. Rf8 {[%emt 0:00:55]} Be5 {[%emt 0:00:43]} 40. Rc8 {[%emt 0:00:00]} Kd6 {[%emt 0:00:00]} 41. Kf3 {[%emt 0:04:36]} h5 {[%emt 0:04:17]} 42. Rg8 {[%emt 0:00:34]} Bf6 {[%emt 0:03:15]} 43. Ra8 {[%emt 0:01:11]} Be7 {[%emt 0:03:43]} 44. Rh8 {[%emt 0:01:04]} h4 45. Ra8 Ke5 {[%emt 0:02:19]} 46. Kg4 {[%emt 0:01:19]} Rb6 {[%emt 0:09:34]} 47. Rxa5 {[%emt 0:00:55]} Rc6 {[%emt 0:00:03]} 48. Bc1 {[%emt 0:03:15]} Rf6 {[%emt 0:01:11]} 49. Ra7 {[%emt 0:01:22]} Bd8 {[%emt 0:03:15]} 50. Rd7 {[%emt 0:00:42]} Rf1 51. Rxd8 {[%emt 0:01:35]} Rxc1 {[%emt 0:02:51]} 52. Rd5+ {[%emt 0:00:03]} Ke6 {[%emt 0:00:08]} 53. Rxc5 {[%emt 0:00:03]} Rg1 {[%emt 0:00:11]} 54. Kxg5 {[%emt 0:00:13]} 1-0

[Event "XXVII RUS-chT Women 2020"]
[Site "Sochi"]
[Date "2020.11.19"]
[Round "1.16"]
[White "Lesnykh, Zhanna"]
[Black "Illina, Natalia"]
[Result "0-1"]
[ECO "B44"]
[WhiteElo "1755"]
[BlackElo "2072"]
[Annotator "NA"]
[PlyCount "152"]
[EventDate "2020.11.19"]
[EventType "team-tourn"]
[EventCountry "RUS"]
[SourceTitle "playchess.com"]
[Source "ChessBase"]
[SourceQuality "1"]
[TimeControl "40/5400+30:1800+30"]

1. e4 {[%emt 0:00:00]} c5 {[%emt 0:00:00]} 2. Nf3 {[%emt 0:00:00]} e6 {[%emt 0:00:00]} 3. d4 {[%emt 0:00:00]} cxd4 {[%emt 0:00:00]} 4. Nxd4 {[%emt 0:00:00]} Nc6 {[%emt 0:00:02]} 5. Nxc6 {[%emt 0:01:14]} bxc6 {[%emt 0:00:09]} 6. Nc3 {[%emt 0:02:46]} Nf6 {[%emt 0:00:17]} 7. e5 {[%emt 0:01:27]} Nd5 {[%emt 0:00:19]} 8. Nxd5 {[%emt 0:02:36]} cxd5 {[%emt 0:00:18]} 9. Bd3 {[%emt 0:06:35]} Rb8 {[%emt 0:08:15]} 10. O-O {[%emt 0:02:21]} Qc7 {[%emt 0:14:09]} 11. f4 {[%emt 0:11:45]} Be7 {[%emt 0:16:34]} 12. Qh5 {[%emt 0:09:03]} g6 {[%emt 0:10:53]} 13. Qh6 {[%emt 0:07:07]} Bf8 {[%emt 0:00:37]} 14. Qg5 {[%emt 0:02:14]} Bg7 {[%emt 0:06:46]} 15. b3 {[%emt 0:06:48]} Qc5+ {[%emt 0:06:16]} 16. Kh1 {[%emt 0:00:57]} O-O {[%emt 0:01:46]} 17. Bb2 {[%emt 0:10:26]} Qa5 {[%emt 0:16:55]} 18. h4 {[%emt 0:12:14]} Ba6 {[%emt 0:06:14]} 19. h5 {[%emt 0:06:04]} Bxd3 {[%emt 0:01:43]} 20. cxd3 {[%emt 0:00:06]} Qd2 {[%emt 0:00:37]} 21. Ba3 {[%emt 0:01:04]} Rfe8 {[%emt 0:04:21]} 22. hxg6 {[%emt 0:09:19]} fxg6 {[%emt 0:01:12]} 23. Rf3 {[%emt 0:00:44]} Qa5 {[%emt 0:00:54]} 24. Bd6 {[%emt 0:05:41]} Rxb3 {[%emt 0:02:25]} 25. axb3 {[%emt 0:00:06]} Qxa1+ {[%emt 0:00:16]} 26. Kh2 {[%emt 0:00:04]} Qe1 {[%emt 0:00:53]} 27. Rh3 {[%emt 0:01:07]} Qf2 {[%emt 0:00:43]} 28. b4 {[%emt 0:00:55]} Bf8 {[%emt 0:00:46]} 29. Rf3 {[%emt 0:00:43]} Qe1 {[%emt 0:00:12]} 30. Bxf8 {[%emt 0:00:17]} Rxf8 {[%emt 0:00:02]} 31. Qe7 {[%emt 0:00:25]} Rf7 {[%emt 0:00:34]} 32. Qd8+ {[%emt 0:00:43]} Kg7 {[%emt 0:00:12]} 33. Qa5 {[%emt 0:00:35]} Qh4+ {[%emt 0:00:23]} 34. Kg1 {[%emt 0:00:09]} Qe1+ {[%emt 0:00:51]} 35. Kh2 {[%emt 0:00:09]} Qd2 {[%emt 0:01:02]} 36. Qxa7 {[%emt 0:00:36]} Qxb4 {[%emt 0:00:04]} 37. Qf2 {[%emt 0:00:31]} Qf8 {[%emt 0:00:58]} 38. Qe3 {[%emt 0:01:06]} Kg8 {[%emt 0:00:13]} 39. Kg1 {[%emt 0:00:40]} Qh6 {[%emt 0:00:33]} 40. Qf2 {[%emt 0:00:00]} Qf8 {[%emt 0:00:00]} 41. Qe3 {[%emt 0:03:54]} Qb4 {[%emt 0:02:44]} 42. Rf1 {[%emt 0:04:06]} Rf8 {[%emt 0:03:12]} 43. Rf2 {[%emt 0:05:24]} Rc8 {[%emt 0:01:47]} 44. Kh2 {[%emt 0:03:18]} Rf8 {[%emt 0:11:36]} 45. Rf3 {[%emt 0:07:35]} Ra8 {[%emt 0:02:56]} 46. Qc1 {[%emt 0:01:28]} Qb7 {[%emt 0:04:04]} 47. Qc5 {[%emt 0:00:52]} Rf8 {[%emt 0:03:08]} 48. Qe7 {[%emt 0:01:06]} Qc8 {[%emt 0:00:34]} 49. Rh3 {[%emt 0:03:35]} Rf7 {[%emt 0:00:05]} 50. Qh4 {[%emt 0:01:41]} Qf8 {[%emt 0:00:42]} 51. Kh1 {[%emt 0:01:43]} Qc5 {[%emt 0:01:12]} 52. Rf3 {[%emt 0:01:19]} Kg7 {[%emt 0:00:19]} 53. Kh2 {[%emt 0:00:49]} Qb4 {[%emt 0:03:17]} 54. Qf2 {[%emt 0:00:32]} Qf8 {[%emt 0:01:22]} 55. Qe3 {[%emt 0:00:24]} Kg8 {[%emt 0:01:19]} 56. Qf2 {[%emt 0:00:22]} Qh6+ {[%emt 0:00:23]} 57. Kg1 {[%emt 0:00:21]} Qh5 {[%emt 0:00:29]} 58. Qg3 {[%emt 0:00:53]} Rf8 {[%emt 0:00:40]} 59. Qf2 {[%emt 0:00:52]} Qg4 {[%emt 0:00:13]} 60. Qe3 {[%emt 0:00:14]} Rf5 {[%emt 0:00:56]} 61. Qc1 {[%emt 0:00:29]} Kg7 {[%emt 0:00:24]} 62. Kf2 {[%emt 0:00:32]} Qh4+ {[%emt 0:00:20]} 63. Kg1 {[%emt 0:00:42]} Qg4 {[%emt 0:00:37]} 64. Kf2 {[%emt 0:00:08]} h6 {[%emt 0:00:39]} 65. Qc7 {[%emt 0:00:33]} Qh4+ {[%emt 0:00:17]} 66. Kf1 {[%emt 0:00:34]} Rf7 {[%emt 0:00:26]} 67. Ke2 {[%emt 0:00:34]} h5 {[%emt 0:00:43]} 68. Qc1 {[%emt 0:00:23]} Qg4 {[%emt 0:00:31]} 69. Kf2 {[%emt 0:00:13]} h4 {[%emt 0:00:32]} 70. Qe3 {[%emt 0:00:13]} Rf5 {[%emt 0:00:29]} 71. Qa7 {[%emt 0:01:26]} Rxf4 {[%emt 0:00:25]} 72. Qxd7+ {[%emt 0:00:06]} Kh6 {[%emt 0:00:04]} 73. Qd8 {[%emt 0:00:56]} Rxf3+ {[%emt 0:00:19]} 74. gxf3 {[%emt 0:00:03]} Qg3+ {[%emt 0:00:04]} 75. Ke2 {[%emt 0:00:28]} Qxe5+ {[%emt 0:00:04]} 76. Kd2 {[%emt 0:00:07]} Qg5+ {[%emt 0:00:04]} 0-1

[Event "XXVII RUS-chT Women 2020"]
[Site "Sochi"]
[Date "2020.11.19"]
[Round "1.17"]
[White "Grigorieva, Yulia"]
[Black "Protopopova, Anastasiya"]
[Result "0-1"]
[ECO "E46"]
[WhiteElo "2343"]
[BlackElo "2267"]
[Annotator "ChessBase"]
[PlyCount "150"]
[EventDate "2020.11.19"]
[EventType "team-tourn"]
[EventCountry "RUS"]
[SourceTitle "playchess.com"]
[Source "ChessBase"]
[SourceQuality "1"]
[TimeControl "40/5400+30:1800+30"]

1. d4 {[%emt 0:00:00]} Nf6 {[%emt 0:00:00]} 2. c4 {[%emt 0:00:00]} e6 {[%emt 0:00:00]} 3. Nc3 {[%emt 0:00:00]} Bb4 {[%emt 0:00:02]} 4. e3 {[%emt 0:00:01]} O-O {[%emt 0:00:25]} 5. Nge2 {[%emt 0:00:48]} Re8 {[%emt 0:04:47]} 6. a3 {[%emt 0:04:39]} Bf8 {[%emt 0:00:12]} 7. Ng3 {[%emt 0:01:57]} d5 {[%emt 0:08:02]} 8. cxd5 {[%emt 0:03:49]} exd5 {[%emt 0:01:21]} 9. b4 {[%emt 0:09:24]} b6 {[%emt 0:16:35]} 10. Be2 {[%emt 0:01:46]} c5 {[%emt 0:04:21]} 11. bxc5 {[%emt 0:01:17]} bxc5 {[%emt 0:00:08]} 12. dxc5 {[%emt 0:01:10]} Na6 {[%emt 0:03:47]} 13. c6 {[%emt 0:15:11]} Qd6 {[%emt 0:14:32]} 14. Bb2 {[%emt 0:12:11]} Rb8 {[%emt 0:07:24]} 15. Nb5 {[%emt 0:06:06]} Qxc6 {[%emt 0:01:32]} 16. Nxa7 {[%emt 0:04:01]} Qc7 {[%emt 0:07:24]} 17. Bxf6 {[%emt 0:03:09]} Qxa7 {[%emt 0:06:18]} 18. Bd4 {[%emt 0:01:30]} Nc5 {[%emt 0:00:38]} 19. O-O {[%emt 0:01:42]} Qa5 {[%emt 0:00:58]} 20. Nh5 {[%emt 0:12:58]} Nb3 {[%emt 0:06:20]} 21. Rb1 {[%emt 0:00:31]} Qxa3 {[%emt 0:00:50]} 22. Bd3 {[%emt 0:01:52]} Bd7 {[%emt 0:02:17]} 23. Bb2 {[%emt 0:03:36]} Qb4 {[%emt 0:02:11]} 24. Nf4 {[%emt 0:03:07]} Qd6 {[%emt 0:10:02]} 25. Bc2 {[%emt 0:07:53]} Nc5 {[%emt 0:01:07]} 26. Qh5 {[%emt 0:00:52]} h6 {[%emt 0:00:54]} 27. Rfd1 {[%emt 0:01:26]} Na4 {[%emt 0:00:35]} 28. Rxd5 {[%emt 0:01:38]} Qc7 {[%emt 0:00:29]} 29. Bxa4 {[%emt 0:01:11]} Bxa4 {[%emt 0:00:02]} 30. Rd2 {[%emt 0:00:40]} Bc2 {[%emt 0:00:40]} 31. Nd5 {[%emt 0:00:24]} Qc4 {[%emt 0:00:52]} 32. Rd4 {[%emt 0:00:36]} Qa2 {[%emt 0:00:21]} 33. Rf1 {[%emt 0:00:32]} Qxb2 {[%emt 0:00:44]} 34. h4 {[%emt 0:00:30]} Rbd8 {[%emt 0:00:32]} 35. Qg4 {[%emt 0:00:30]} Kh8 {[%emt 0:00:22]} 36. Qf3 {[%emt 0:00:30]} Qb7 {[%emt 0:00:10]} 37. Rc1 {[%emt 0:00:30]} Bb3 {[%emt 0:00:29]} 38. e4 {[%emt 0:00:29]} Bxd5 {[%emt 0:00:21]} 39. exd5 {[%emt 0:00:10]} Bd6 {[%emt 0:00:28]} 40. g4 {[%emt 0:00:00]} Qb2 {[%emt 0:00:00]} 41. Rdc4 {[%emt 0:08:06]} Qe5 {[%emt 0:02:48]} 42. Kf1 {[%emt 0:02:09]} Kg8 {[%emt 0:01:37]} 43. Rc6 {[%emt 0:10:52]} Qe4 {[%emt 0:05:47]} 44. Kg2 {[%emt 0:00:22]} Qxf3+ {[%emt 0:00:46]} 45. Kxf3 {[%emt 0:00:02]} Be7 {[%emt 0:00:10]} 46. Rd1 {[%emt 0:02:22]} Bxh4 {[%emt 0:00:49]} 47. Rc2 {[%emt 0:02:12]} Rd6 {[%emt 0:00:16]} 48. Rcd2 {[%emt 0:01:17]} Rf6+ {[%emt 0:00:17]} 49. Kg2 {[%emt 0:00:05]} Bg5 {[%emt 0:00:15]} 50. Rc2 {[%emt 0:00:57]} Bf4 {[%emt 0:01:23]} 51. Ra2 {[%emt 0:00:59]} g5 {[%emt 0:01:12]} 52. Kf3 {[%emt 0:02:09]} Rd6 {[%emt 0:00:22]} 53. Re2 {[%emt 0:02:47]} Red8 {[%emt 0:01:05]} 54. Ke4 {[%emt 0:00:42]} Kg7 {[%emt 0:00:04]} 55. Ra2 {[%emt 0:01:45]} Kf6 {[%emt 0:00:30]} 56. Ra5 {[%emt 0:00:31]} Re8+ {[%emt 0:00:19]} 57. Kd3 {[%emt 0:01:28]} Re5 {[%emt 0:00:50]} 58. Kc4 {[%emt 0:01:02]} Re2 {[%emt 0:00:11]} 59. f3 {[%emt 0:00:31]} Rf2 {[%emt 0:02:32]} 60. Rd3 {[%emt 0:00:30]} Rc2+ {[%emt 0:00:46]} 61. Kb3 {[%emt 0:00:21]} Rd2 {[%emt 0:00:50]} 62. Kc4 {[%emt 0:00:41]} Rxd3 {[%emt 0:00:19]} 63. Kxd3 {[%emt 0:00:04]} Ke5 {[%emt 0:00:08]} 64. Kc4 {[%emt 0:00:05]} f5 {[%emt 0:00:14]} 65. Ra8 {[%emt 0:01:11]} fxg4 {[%emt 0:00:36]} 66. Re8+ {[%emt 0:00:04]} Kf5 {[%emt 0:00:44]} 67. Rf8+ {[%emt 0:00:09]} Kg6 {[%emt 0:02:29]} 68. fxg4 {[%emt 0:00:01]} h5 {[%emt 0:00:17]} 69. gxh5+ {[%emt 0:01:24]} Kxh5 {[%emt 0:00:02]} 70. Kc5 {[%emt 0:00:53]} Rg6 {[%emt 0:00:19]} 71. Re8 {[%emt 0:00:39]} g4 {[%emt 0:00:13]} 72. Rh8+ {[%emt 0:00:22]} Kg5 {[%emt 0:00:08]} 73. Kd4 {[%emt 0:00:24]} g3 {[%emt 0:00:08]} 74. Rh1 {[%emt 0:00:06]} g2 {[%emt 0:00:12]} 75. Rg1 {[%emt 0:00:44]} Kf5 {[%emt 0:00:04]} 0-1